bitfinex-derivatives/quotes_ETHF0:USTF0_20260115
["timestamp","ask_amount","ask_price","bid_price","bid_amount"]
[1768504292570,0.16484,3293.6,3292.1,0.01633665]
[1768504293271,0.15185,3293.5,3292.1,0.01633665]
[1768504294579,0.00331849,3293.8,3292.2,3.526487]
[1768504294765,0.00331849,3293.8,3292.2,3.678397]
[1768504295476,0.15179,3294.8,3293.4,3.526487]
[1768504295677,3.49292146,3295.1,3293.5,0.013]
[1768504296375,3.49609157,3295.1,3293.5,0.013]
[1768504296578,3.49609157,3295.1,3293.4,3.526487]
[1768504296774,3.49609157,3295.1,3292.9,5.2961629]
[1768504296969,3.49609157,3295.1,3293.2,3.038]
[1768504297165,3.49292146,3294.4,3292.4,3.526487]
[1768504297376,3.64473146,3294.3,3292.5,3.539487]
[1768504297574,0.15181,3294.3,3292.5,3.539487]
[1768504299369,0.013,3294.7,3292.6,3.526487]
[1768504300178,3.49292146,3294.8,3292.6,3.526487]
[1768504300476,3.49292146,3294.0,3292.7,0.013]
[1768504300682,0.15184,3293.7,3292.7,0.013]
[1768504304581,0.15184,3293.6,3292.7,0.013]
[1768504305778,0.15185,3293.5,3292.7,0.013]
[1768504306982,3.50592146,3294.0,3292.7,0.013]
[1768504307309,0.15182,3294.2,3292.7,0.013]
[1768504307783,0.15182,3294.2,3292.7,3.539487]
[1768504311282,0.15184,3293.8,3292.1,2.73638735]
[1768504311482,2.70163025,3293.8,3292.2,0.013]
[1768504311882,0.013,3293.9,3292.2,0.013]
[1768504311883,0.15185,3293.4,3292.2,0.013]
[1768504313789,0.15185,3293.4,3292.1,0.00333665]
[1768504313990,0.15185,3293.4,3292.2,0.013]
[1768504315890,0.15185,3293.4,3292.3,0.013]
[1768504316289,0.15186,3293.3,3292.3,0.013]
[1768504317586,0.15186,3293.3,3292.1,0.00333665]
[1768504317785,0.15186,3293.3,3292.2,0.013]
[1768504318389,0.15186,3293.2,3292.2,0.013]
[1768504318690,0.15186,3293.2,3292.1,0.00333665]
[1768504318691,0.15187,3293.1,3292.1,0.00333665]
[1768504318993,0.15187,3293.1,3292.2,0.013]
[1768504319284,0.15187,3293.0,3292.1,0.00333665]
[1768504319486,0.15187,3293.0,3292.2,0.013]
[1768504320388,2.70163025,3293.6,3292.2,0.013]
[1768504320688,0.15184,3293.7,3292.2,0.013]
[1768504320885,2.71463025,3293.9,3292.2,0.013]
[1768504321086,2.70163025,3293.4,3292.1,0.00333665]
[1768504321288,0.15186,3293.2,3292.1,0.00333665]
[1768504321485,0.15186,3293.2,3292.1,0.01633665]
[1768504324086,0.15187,3293.1,3292.1,0.01633665]
[1768504324490,0.15187,3293.1,3292.2,0.013]
[1768504325489,0.15184,3293.7,3292.2,0.013]
[1768504325694,0.15184,3293.7,3292.2,2.6865551]
[1768504325894,0.15184,3293.7,3292.3,0.013]
[1768504326591,0.15184,3293.7,3292.3,2.6995551]
[1768504330902,0.15184,3293.7,3292.1,0.00333665]
[1768504330903,2.70163025,3293.7,3292.1,0.00333665]
[1768504331197,2.70163025,3293.7,3292.2,0.013]
[1768504331594,0.15185,3293.4,3292.2,0.013]
[1768504333788,0.15183,3293.8,3292.3,2.6865551]
[1768504334190,0.15181,3294.4,3292.3,2.6865551]
[1768504334390,0.15181,3294.4,3292.8,2.6865551]
[1768504334596,0.15181,3294.4,3292.9,2.6995551]
[1768504335104,0.15181,3294.3,3293.0,0.013]
[1768504335300,0.15181,3294.3,3293.0,2.6995551]
[1768504338499,0.15178,3295.0,3293.3,2.6865551]
[1768504338698,0.15178,3295.0,3293.4,0.013]
[1768504339208,0.15178,3295.0,3293.4,2.6995551]
[1768504340103,2.85342025,3294.8,3292.9,5.4196058]
[1768504340308,2.85342025,3294.8,3293.0,3.051]
[1768504340608,2.85342025,3294.8,3293.1,2.6865551]
[1768504341704,2.85342025,3294.8,3293.2,0.013]
[1768504342100,2.85342025,3294.8,3293.1,2.6865551]
[1768504342412,2.85342025,3294.8,3293.2,0.013]
[1768504342602,2.85342025,3294.8,3293.3,0.013]
[1768504342804,0.1518,3294.5,3293.4,0.013]
[1768504343110,0.1518,3294.5,3293.5,0.013]
[1768504345104,1.81314589,3294.1,3292.5,3.038]
[1768504345415,0.15184,3293.8,3292.6,0.013]
[1768504346910,0.15184,3293.8,3292.1,0.00333665]
[1768504346911,1.85968957,3293.4,3292.1,0.00333665]
[1768504347110,0.15186,3293.3,3292.2,0.013]
[1768504348113,1.85968957,3293.3,3292.2,0.013]
[1768504348818,0.15189,3292.7,3290.8,4.55262314]
[1768504349006,1.85971957,3292.7,3290.9,0.013]
[1768504349203,1.70782957,3292.7,3290.9,0.013]
[1768504349813,0.15189,3292.5,3290.9,0.00241048]
[1768504350018,1.70782957,3292.0,3289.9,1.81957244]
[1768504350222,1.85975957,3291.7,3290.1,0.013]
[1768504350409,0.012,3291.6,3290.1,0.013]
[1768504350916,0.012,3291.6,3290.1,0.01537096]
[1768504351306,1.70782957,3291.3,3290.1,0.01537096]
[1768504351506,1.71982957,3291.2,3290.1,0.01537096]
[1768504351708,1.87177957,3291.2,3290.1,0.01537096]
[1768504351918,1.87177957,3291.2,3290.1,0.00237096]
[1768504352535,0.15197,3291.0,3289.8,0.013]
[1768504352736,0.012,3290.9,3289.8,0.013]
[1768504353036,0.012,3290.9,3288.8,1.81957244]
[1768504353037,1.85979957,3290.8,3289.5,0.013]
[1768504353840,0.15198,3290.7,3289.5,0.01540704]
[1768504354643,1.70782957,3291.4,3289.6,1.7696759]
[1768504354832,0.15194,3291.5,3289.7,1.81957244]
[1768504356640,0.012,3291.4,3289.7,1.81957244]
[1768504357435,0.16394,3291.5,3289.7,1.81957244]
[1768504361234,0.15194,3291.5,3289.7,1.81957244]
[1768504364933,0.15192,3292.0,3289.7,1.97159244]
[1768504365132,0.15192,3292.0,3289.9,1.81957244]
[1768504365337,0.15192,3292.0,3290.1,1.81957244]
[1768504371349,1.70782957,3292.4,3290.1,1.81957244]
[1768504371543,0.15189,3292.5,3290.3,1.25797057]
[1768504371848,0.012,3292.4,3290.5,1.25797057]
[1768504372048,1.37249807,3292.4,3290.5,1.25797057]
[1768504372357,0.15192,3291.9,3290.6,0.012]
[1768504372648,0.16392,3291.9,3290.6,0.012]
[1768504374552,0.15192,3291.9,3290.6,0.012]
[1768504374851,0.16392,3291.9,3290.6,0.012]
[1768504376256,0.012,3291.8,3290.6,0.012]
[1768504380156,0.15192,3291.9,3290.6,0.012]
[1768504380344,0.012,3291.8,3290.6,0.012]
[1768504383251,0.15194,3291.6,3290.6,0.012]
[1768504386458,0.15194,3291.6,3290.6,1.26997057]
[1768504389760,0.15194,3291.6,3290.6,0.012]
[1768504393958,0.15194,3291.5,3290.6,0.012]
[1768504400363,0.15195,3291.3,3290.2,0.012]
[1768504400570,0.16395,3291.3,3290.2,0.012]
[1768504401056,0.012,3291.7,3290.2,1.01960637]
[1768504401257,0.012,3291.7,3290.3,1.00760637]
[1768504401457,0.16392,3291.9,3290.3,1.00760637]
[1768504401867,0.15192,3291.9,3290.3,1.00760637]
[1768504402070,0.15192,3291.9,3290.4,1.00760637]
[1768504402259,0.15192,3291.9,3290.5,1.00760637]
[1768504402463,0.15192,3291.9,3290.6,1.00760637]
[1768504402768,0.15192,3291.9,3290.7,0.012]
[1768504405669,0.15193,3291.8,3290.7,0.012]
[1768504406065,0.15193,3291.8,3290.7,0.95148906]
[1768504408373,1.07955781,3292.4,3290.7,0.95148906]
[1768504408772,1.07955781,3292.4,3290.8,0.93948906]
[1768504409170,0.012,3292.6,3290.8,0.93948906]
[1768504409364,1.07954781,3292.5,3291.0,0.93948906]
[1768504409572,1.07954781,3292.5,3291.1,0.012]
[1768504410365,0.92765781,3292.2,3290.8,2.7330507]
[1768504410675,1.07956781,3292.1,3290.9,0.012]
[1768504411770,0.92765781,3291.9,3290.9,0.012]
[1768504411979,0.93965781,3291.8,3290.9,0.012]
[1768504412272,0.93965781,3291.8,3290.6,0.012]
[1768504413576,0.012,3291.7,3290.6,0.012]
[1768504413971,0.15192,3291.9,3290.6,0.012]
[1768504414170,0.16392,3291.9,3290.6,0.012]
[1768504415273,0.92765781,3292.3,3290.6,0.95148906]
[1768504415475,0.92765781,3292.1,3290.6,0.012]
[1768504415965,0.92765781,3291.9,3290.6,0.012]
[1768504417375,1.07958781,3291.8,3290.6,0.012]
[1768504417562,0.012,3291.7,3290.6,0.012]
[1768504417761,1.09158781,3291.7,3290.6,0.012]
[1768504420384,0.92765781,3292.2,3290.6,0.012]
[1768504420570,0.15191,3292.3,3290.9,1.77358947]
[1768504421880,1.07956781,3292.3,3290.6,3.68453976]
[1768504424074,1.09156781,3292.3,3290.6,3.68453976]
[1768504425282,1.07956781,3292.2,3290.6,0.012]
[1768504425876,0.15192,3292.0,3290.6,0.012]
[1768504426087,0.16392,3292.0,3290.6,0.012]
[1768504426386,1.07958781,3291.8,3290.6,0.012]
[1768504426773,0.012,3291.7,3290.6,0.012]
[1768504428474,0.15194,3291.6,3290.6,0.012]
[1768504428675,1.07959781,3291.6,3290.6,0.012]
[1768504429282,0.15194,3291.6,3290.6,0.012]
[1768504430282,0.92765781,3292.1,3290.6,0.012]
[1768504430486,0.83852183,3292.0,3290.6,0.012]
[1768504430681,1.07956781,3292.1,3290.6,0.012]
[1768504430981,0.15191,3292.1,3290.6,0.75094438]
[1768504433073,0.012,3292.3,3290.7,0.012]
[1768504433074,0.15192,3291.9,3290.7,0.012]
[1768504436091,0.88051288,3291.8,3290.7,0.012]
[1768504437683,0.15193,3291.8,3290.7,0.012]
[1768504442589,0.72858288,3292.2,3290.7,0.012]
[1768504442793,0.012,3292.1,3290.7,0.012]
[1768504443092,0.72858288,3292.2,3290.7,0.012]
[1768504443293,0.72858288,3292.2,3291.0,1.231395]
[1768504443886,0.88049288,3292.2,3291.0,1.231395]
[1768504444394,0.88049288,3292.1,3290.7,0.012]
[1768504444589,0.88049288,3292.1,3290.8,1.231395]
[1768504445192,0.15192,3292.0,3290.8,1.231395]
[1768504450099,0.15192,3292.0,3290.7,1.243395]
[1768504453305,0.15192,3292.0,3291.0,1.231395]
[1768504453507,0.15542516,3292.7,3291.7,1.231395]
[1768504453707,0.83736942,3292.6,3291.7,1.243395]
[1768504453895,0.16742516,3292.7,3291.7,0.012]
[1768504454095,0.83737971,3292.6,3291.7,0.012]
[1768504454296,0.16742516,3292.7,3291.7,0.012]
[1768504454497,0.83733821,3292.6,3291.7,0.012]
[1768504454803,0.16742516,3292.7,3291.7,0.012]
[1768504455000,0.98923918,3292.6,3291.7,1.243395]
[1768504455204,0.15189,3292.6,3291.7,1.243395]
[1768504455406,0.15189,3292.6,3291.7,0.012]
[1768504455810,0.15189,3292.6,3291.8,1.231395]
[1768504458408,0.15189,3292.6,3291.7,0.012]
[1768504463216,0.00353516,3292.7,3291.0,2.7330507]
[1768504463217,1.231395,3292.1,3291.0,2.7330507]
[1768504463518,0.15191,3292.1,3291.1,0.012]
[1768504464314,0.15192,3292.0,3291.1,0.012]
[1768504465308,1.231395,3291.7,3290.3,3.9644457]
[1768504465512,1.75327841,3291.7,3290.4,0.012]
[1768504465714,0.52188341,3291.7,3290.5,1.231395]
[1768504466615,0.15193,3291.6,3290.5,1.231395]
[1768504468319,0.15193,3291.6,3290.6,1.231395]
[1768504468519,0.15193,3291.6,3290.7,0.012]
[1768504476133,0.15194,3291.5,3290.7,0.012]
[1768504476335,1.383335,3291.5,3290.7,0.012]
[1768504476938,0.15194,3291.5,3290.7,0.012]
[1768504478429,0.67379341,3292.2,3291.0,1.231395]
[1768504478736,0.16391,3292.1,3291.1,0.012]
[1768504479042,0.012,3292.0,3291.1,0.012]
[1768504479734,0.16392,3292.0,3291.1,0.012]
[1768504482639,0.15192,3292.0,3291.1,0.012]
[1768504486243,0.46553741,3292.6,3291.3,1.23150511]
[1768504486244,0.012,3292.5,3291.3,1.23150511]
[1768504486644,0.011,3292.5,3291.3,1.23150511]
[1768504487143,0.15189,3292.6,3291.3,1.23150511]
[1768504487450,0.16289,3292.6,3291.3,1.23150511]
[1768504487749,0.15189,3292.6,3291.3,1.73213621]
[1768504487946,0.15189,3292.6,3291.4,0.5006311]
[1768504488243,0.15542516,3292.7,3291.5,0.012]
[1768504492055,0.011,3292.6,3291.5,0.012]
[1768504494150,0.15189,3292.5,3291.5,0.012]
[1768504495843,0.15191,3292.2,3290.6,0.43181347]
[1768504496041,0.011,3292.1,3290.7,0.012]
[1768504496239,0.16291,3292.1,3290.7,0.012]
[1768504497150,0.15191,3292.1,3290.7,0.012]
[1768504497454,0.16291,3292.1,3290.8,1.23150511]
[1768504498452,0.15191,3292.1,3290.8,1.23150511]
[1768504498753,0.16291,3292.1,3290.8,1.23150511]
[1768504500258,0.16291,3292.1,3290.7,0.012]
[1768504500446,0.011,3292.1,3290.7,0.012]
[1768504500754,0.33408872,3292.3,3290.7,0.012]
[1768504500945,0.00353516,3292.7,3291.6,1.66331858]
[1768504501143,0.28362276,3293.3,3291.6,1.66331858]
[1768504501144,0.011,3293.2,3292.0,1.23150511]
[1768504501344,0.011,3293.2,3291.7,0.012]
[1768504501552,0.15187,3293.0,3291.7,0.44381347]
[1768504502256,0.15461514,3293.0,3291.7,0.44729135]
[1768504502458,0.15188,3292.7,3291.7,0.00347788]
[1768504502764,0.15191,3292.3,3291.5,0.012]
[1768504503360,0.2685147,3292.4,3290.7,3.039]
[1768504503655,0.15192,3291.9,3290.8,0.012]
[1768504503856,0.011,3292.1,3290.8,0.012]
[1768504504065,0.84710386,3292.0,3290.8,0.012]
[1768504504250,0.011,3292.0,3290.8,0.012]
[1768504504450,0.25326532,3292.2,3290.8,0.012]
[1768504504651,0.8471952,3292.1,3290.8,0.012]
[1768504504851,0.011,3292.1,3290.8,0.012]
[1768504505259,0.25812179,3292.1,3290.7,0.00223777]
[1768504505560,0.15196,3291.2,3289.5,4.25298895]
[1768504505759,0.011,3291.1,3289.6,0.43181347]
[1768504505965,0.16296,3291.1,3289.6,0.43181347]
[1768504506351,0.011,3291.0,3289.6,0.43494578]
[1768504506658,0.011,3291.0,3290.0,0.43181347]
[1768504506860,0.011,3291.0,3290.0,0.44381347]
[1768504507269,0.011,3291.3,3290.0,0.44381347]
[1768504507456,0.15194,3291.6,3290.0,0.44381347]
[1768504507652,1.23150511,3292.3,3290.0,0.44381347]
[1768504507653,0.1519,3292.3,3290.7,1.23150511]
[1768504507962,0.84708549,3292.2,3290.7,1.24350511]
[1768504508161,0.1519,3292.3,3290.8,0.43181347]
[1768504508467,0.011,3292.2,3290.8,0.43181347]
[1768504508661,0.1519,3292.3,3290.8,0.43181347]
[1768504508864,0.1629,3292.3,3290.8,0.43181347]
[1768504509064,0.1519,3292.3,3290.8,0.43181347]
[1768504509265,0.1519,3292.3,3291.1,1.23150511]
[1768504509462,0.16291,3292.2,3290.7,0.012]
[1768504509761,0.15192,3291.9,3290.7,0.012]
[1768504510154,0.22229141,3292.5,3290.7,1.67531858]
[1768504510462,0.011,3292.4,3290.8,0.43181347]
[1768504510862,0.15189,3292.5,3290.8,0.43181347]
[1768504511769,0.1519,3292.4,3290.8,0.43181347]
[1768504511967,0.011,3292.7,3290.8,0.43181347]
[1768504511968,0.1629,3292.3,3290.8,0.43181347]
[1768504512268,0.1629,3292.3,3290.7,0.012]
[1768504512269,0.15191,3292.2,3290.7,0.012]
[1768504514666,0.15193,3291.7,3290.4,0.011]
[1768504515065,0.15193,3291.7,3290.6,0.43181347]
[1768504515368,0.1519,3292.4,3290.6,0.43181347]
[1768504515572,0.8480435,3292.3,3290.9,1.23150511]
[1768504515770,0.011,3292.3,3291.0,0.011]
[1768504516566,0.1629,3292.3,3291.0,0.011]
[1768504516963,0.011,3292.2,3291.0,0.011]
[1768504517385,0.1519,3292.3,3291.0,0.011]
[1768504517593,0.011,3292.2,3291.0,0.011]
[1768504520392,0.1519,3292.3,3291.0,0.011]
[1768504520688,0.011,3292.2,3291.0,0.011]
[1768504521189,0.1519,3292.3,3291.0,0.34766078]
[1768504521389,0.1519,3292.3,3291.3,1.23150511]
[1768504521994,0.15188,3292.9,3291.7,1.23150511]
[1768504522294,0.15188,3292.9,3291.8,0.011]
[1768504522796,0.01374514,3293.0,3291.8,0.011]
[1768504522797,0.16022618,3293.0,3291.8,0.011]
[1768504522999,0.83753705,3292.9,3290.9,0.33666078]
[1768504523201,0.16022618,3293.0,3291.0,0.34766078]
[1768504523398,0.837427,3292.9,3291.0,0.34766078]
[1768504523601,0.15189,3292.5,3291.0,0.34766078]
[1768504524097,0.15189,3292.5,3291.2,0.33666078]
[1768504525704,0.15193,3291.8,3290.4,0.32559802]
[1768504526000,0.15194,3291.5,3290.5,0.011]
[1768504530794,0.15194,3291.5,3289.6,3.04313231]
[1768504530795,0.10300956,3291.4,3289.6,0.00313231]
[1768504530994,0.15197,3291.0,3289.7,0.011]
[1768504531202,0.011,3291.0,3289.7,0.011]
[1768504531788,0.15197,3290.9,3289.7,0.011]
[1768504532899,0.10300956,3291.4,3289.7,0.011]
[1768504533105,7.70204272,3292.2,3289.7,0.33659802]
[1768504533106,0.011,3291.1,3289.7,0.33659802]
[1768504533404,0.15194,3291.6,3289.7,0.33659802]
[1768504533602,0.011,3291.5,3289.7,0.33659802]
[1768504534707,0.15194,3291.6,3289.7,0.33659802]
[1768504534896,0.011,3291.5,3289.7,0.33659802]
[1768504535304,0.15194,3291.6,3289.7,0.33659802]
[1768504535501,0.24794464,3294.1,3289.9,0.32559802]
[1768504535502,0.1519,3292.3,3289.9,0.32559802]
[1768504535700,0.1519,3292.3,3290.2,0.32559802]
[1768504535902,0.1519,3292.3,3290.4,0.32559802]
[1768504536501,0.15191,3292.2,3290.4,0.32559802]
[1768504537102,0.16291,3292.2,3290.4,0.32559802]
[1768504537309,0.15191,3292.2,3290.4,0.32559802]
[1768504539508,0.15191,3292.2,3290.5,0.32559802]
[1768504541300,0.15191,3292.2,3290.7,0.32559802]
[1768504544201,0.15188,3292.8,3290.7,0.32559802]
[1768504544400,0.00274514,3293.0,3291.4,1.77300834]
[1768504544602,0.00274514,3293.0,3291.5,0.33659802]
[1768504547513,1.92488834,3292.9,3291.5,0.011]
[1768504547714,0.15188,3292.9,3291.5,0.011]
[1768504548412,0.15188,3292.9,3291.5,0.33659802]
[1768504549623,0.00274514,3293.0,3291.7,0.32559802]
[1768504550209,0.00274514,3293.0,3291.8,0.011]
[1768504550510,0.00274514,3293.0,3291.9,0.32559802]
[1768504554512,0.15184,3293.7,3292.2,0.26155667]
[1768504554711,0.15184,3293.7,3292.4,0.26155667]
[1768504555620,0.15420584,3293.7,3292.4,0.26490034]
[1768504556412,0.00236584,3293.7,3292.4,0.26490034]
[1768504563915,1.77300834,3295.7,3292.7,0.26155667]
[1768504564226,41.64220334,3295.1,3292.9,0.26155667]
[1768504564423,0.83120334,3295.0,3292.9,0.26155667]
[1768504564727,0.15178,3295.0,3293.2,0.26155667]
[1768504564916,0.15466377,3295.0,3293.4,0.26155667]
[1768504565725,0.15178,3294.9,3293.4,0.26155667]
[1768504567030,0.00288377,3295.0,3293.4,0.26155667]
[1768504567228,0.00288377,3295.0,3293.5,0.011]
[1768504567621,0.00288377,3295.0,3293.5,0.27255667]
[1768504569026,0.00288377,3295.0,3293.5,0.26155667]
[1768504569229,0.00288377,3295.0,3293.6,0.011]
[1768504569427,0.00288377,3295.0,3293.7,0.26155667]
[1768504570226,0.15175,3295.6,3293.7,0.26155667]
[1768504570421,0.15176,3295.5,3293.7,0.26155667]
[1768504570928,0.15176,3295.4,3293.7,0.26155667]
[1768504571133,0.15177,3295.3,3293.8,0.011]
[1768504571339,0.15463899,3295.3,3293.8,0.011]
[1768504571926,0.15177,3295.2,3293.8,0.011]
[1768504572731,0.15177,3295.2,3293.8,0.27255667]
[1768504573830,0.00286899,3295.3,3294.0,0.26155667]
[1768504575118,0.15174,3295.8,3294.0,0.26155667]
[1768504576233,0.15447904,3295.8,3294.0,0.26155667]
[1768504577434,0.15175,3295.7,3294.0,0.26155667]
[1768504582927,0.00273904,3295.8,3293.8,0.011]
[1768504582928,0.00273904,3295.8,3294.5,0.23199732]
[1768504583238,0.15172,3296.3,3294.7,0.23199732]
[1768504584331,0.15415783,3296.3,3294.7,0.23199732]
[1768504587733,0.00243783,3296.3,3294.7,3.26899732]
[1768504587930,0.00243783,3296.3,3294.8,0.23523855]
[1768504588135,0.00243783,3296.3,3295.0,0.23523855]
[1768504589734,0.00243783,3296.3,3295.1,0.011]
[1768504590232,0.15172,3296.2,3295.1,0.24623855]
[1768504593842,0.15174,3295.9,3294.8,0.00341328]
[1768504594136,0.15174,3295.9,3294.9,0.24623855]
[1768504595643,0.00243783,3296.3,3294.9,0.24623855]
[1768504596033,0.15415783,3296.3,3294.9,0.24623855]
[1768504596743,0.011,3296.8,3294.9,0.24623855]
[1768504596940,0.83317895,3296.7,3294.9,0.24623855]
[1768504597140,0.83317895,3296.6,3294.9,0.24623855]
[1768504597340,0.011,3296.8,3294.9,0.24623855]
[1768504597642,0.15450593,3296.8,3295.2,0.23523855]
[1768504597834,0.15450593,3296.8,3295.4,0.23523855]
[1768504599740,0.1517,3296.7,3295.4,0.23523855]
[1768504600044,0.1627,3296.6,3295.4,0.23523855]
[1768504600639,0.15172,3296.3,3295.4,0.23523855]
[1768504600830,0.011,3296.2,3295.3,0.011]
[1768504601642,6.011,3296.2,3294.8,0.00341328]
[1768504601835,0.83373776,3296.1,3295.0,0.011]
[1768504602142,0.83373776,3296.0,3295.0,0.011]
[1768504602344,0.83373776,3295.9,3295.0,0.011]
[1768504602539,0.15175,3295.6,3295.0,0.011]
[1768504602743,0.15175,3295.6,3294.8,0.00341328]
[1768504603843,0.00280593,3296.8,3294.8,0.00341328]
[1768504603844,0.15172,3296.2,3294.9,0.23523855]
[1768504604236,0.15172,3296.2,3295.0,0.011]
[1768504604845,0.15172,3296.2,3295.0,0.24623855]
[1768504605646,0.011,3296.7,3295.0,0.24623855]
[1768504605845,0.15450593,3296.8,3295.0,0.24623855]
[1768504606049,0.83480592,3296.7,3295.0,0.24623855]
[1768504606349,0.15450593,3296.8,3295.0,0.24623855]
[1768504606540,0.8347656,3296.7,3295.0,0.24623855]
[1768504606741,0.15450593,3296.8,3295.0,0.24623855]
[1768504606944,0.1517,3296.7,3295.0,0.24623855]
[1768504607145,0.15171,3296.6,3295.0,0.24623855]
[1768504607453,0.15171,3296.6,3295.1,0.24623855]
[1768504608541,0.15171,3296.5,3295.1,0.24623855]
[1768504611849,0.011,3297.9,3295.7,0.19369275]
[1768504612151,46.14963183,3297.8,3295.8,0.011]
[1768504612350,0.8351655,3297.7,3295.8,0.011]
[1768504612545,0.8351655,3297.6,3295.8,0.011]
[1768504612751,0.8351655,3297.5,3295.8,0.20469275]
[1768504613054,0.8461655,3297.4,3295.8,0.20469275]
[1768504613255,0.8351655,3297.3,3295.8,0.20469275]
[1768504613443,0.8351655,3297.2,3295.8,0.20469275]
[1768504613644,0.15169,3296.9,3295.8,0.19369275]
[1768504613844,0.1517,3296.8,3295.9,0.011]
[1768504614149,0.1517,3296.7,3295.9,0.011]
[1768504614542,0.1627,3296.7,3295.9,0.011]
[1768504615144,0.15171,3296.6,3295.9,0.011]
[1768504615345,0.15171,3296.6,3295.7,0.011]
[1768504618054,0.011,3296.7,3295.7,0.011]
[1768504618258,0.15173,3296.1,3295.1,0.011]
[1768504619660,0.15173,3296.0,3295.1,0.011]
[1768504620062,0.15174,3295.8,3295.1,0.011]
[1768504620755,0.15174,3295.8,3294.9,0.19369275]
[1768504620756,0.15174,3295.8,3294.9,0.20469275]
[1768504623357,0.15175,3295.7,3294.9,0.011]
[1768504627252,0.15172,3296.3,3294.9,0.20469275]
[1768504629762,0.15169,3296.9,3294.9,0.20469275]
[1768504629958,0.83626774,3296.8,3294.9,0.20469275]
[1768504630267,0.011,3296.8,3294.9,0.20469275]
[1768504630567,0.1517,3296.7,3294.9,0.20469275]
[1768504630768,0.1517,3296.6,3294.9,0.20469275]
[1768504632763,0.15171,3296.5,3294.9,0.20469275]
[1768504637669,0.011,3296.8,3294.9,0.35647275]
[1768504637974,0.011,3296.9,3295.0,0.19369275]
[1768504638168,0.83686982,3296.8,3295.0,0.19369275]
[1768504638466,0.83686982,3296.7,3295.0,0.19369275]
[1768504638669,0.16269,3296.9,3295.0,0.19369275]
[1768504638868,0.83697787,3296.8,3295.0,0.19369275]
[1768504639171,0.836739,3296.7,3295.0,0.19369275]
[1768504639364,0.16269,3296.9,3295.0,0.19369275]
[1768504639566,0.83668446,3296.8,3295.1,0.19369275]
[1768504639868,0.15166,3297.5,3295.7,0.19369275]
[1768504640165,0.15166,3297.5,3295.9,0.19369275]
[1768504644071,0.01365853,3297.6,3295.9,0.19369275]
[1768504644072,0.15167,3297.4,3295.9,0.19369275]
[1768504644274,0.01,3297.3,3296.0,0.011]
[1768504644463,0.01,3297.3,3296.1,0.17918124]
[1768504644876,0.15169,3297.0,3296.0,0.011]
[1768504645466,0.1517,3296.8,3295.9,0.011]
[1768504645972,0.1517,3296.8,3295.9,0.18840176]
[1768504646571,0.01,3297.2,3295.9,0.18840176]
[1768504646876,0.01,3297.1,3295.9,0.18840176]
[1768504651269,0.15167,3297.4,3295.9,0.18840176]
[1768504651676,0.00365853,3297.6,3295.9,0.18840176]
[1768504652082,0.15531853,3297.6,3295.9,0.18840176]
[1768504653076,0.00365853,3297.6,3296.0,0.17740176]
[1768504653283,0.15163,3298.3,3296.2,0.17740176]
[1768504653476,0.15163,3298.3,3296.4,0.17740176]
[1768504654075,0.15163,3298.2,3296.4,0.17740176]
[1768504654276,0.15164,3298.1,3296.4,0.17740176]
[1768504654476,0.15164,3298.0,3296.4,0.17740176]
[1768504656782,0.00382022,3298.2,3296.4,0.17740176]
[1768504657287,0.00382022,3298.2,3296.5,0.17740176]
[1768504657587,0.00382022,3298.2,3296.7,0.17740176]
[1768504657780,0.15545022,3298.2,3296.7,0.17740176]
[1768504659078,0.00382022,3298.2,3296.7,0.17740176]
[1768504659583,0.1516,3298.8,3296.8,0.17740176]
[1768504659782,0.15158,3299.4,3297.3,0.17740176]
[1768504660081,0.01,3299.3,3297.5,0.17740176]
[1768504660274,0.1516,3298.8,3297.5,0.17740176]
[1768504660675,0.01,3298.7,3297.5,0.00292081]
[1768504660871,0.15164,3298.1,3297.5,0.00292081]
[1768504661689,6.15164,3298.1,3296.1,0.17740176]
[1768504661986,0.15164,3298.1,3296.5,0.17740176]
[1768504662186,0.15164,3298.1,3296.7,0.17740176]
[1768504662389,0.15164,3298.1,3296.9,0.17740176]
[1768504662885,0.00359558,3298.8,3296.9,0.18102065]
[1768504663089,0.84333753,3298.7,3296.9,0.18102065]
[1768504663283,0.15162,3298.5,3296.9,0.18102065]
[1768504664086,0.00359558,3298.8,3296.9,0.18102065]
[1768504666089,0.00359558,3298.8,3297.2,0.17740176]
[1768504666293,0.00359558,3298.8,3297.1,1.76689239]
[1768504666294,0.00359558,3298.8,3297.4,0.17740176]
[1768504668294,0.00359558,3298.8,3297.5,0.01]
[1768504669286,0.00359558,3298.8,3297.5,0.18740176]
[1768504669491,0.1516,3298.9,3297.7,0.17740176]
[1768504670492,0.15482017,3298.9,3297.7,0.17740176]
[1768504670690,0.15157,3299.6,3297.7,0.17740176]
[1768504670892,0.83413422,3299.5,3297.7,0.17740176]
[1768504671092,0.01,3299.7,3297.7,0.17740176]
[1768504671289,0.15158,3299.4,3297.7,0.17740176]
[1768504671488,0.15158,3299.2,3297.7,0.17740176]
[1768504671688,0.15458058,3299.2,3297.7,0.17740176]
[1768504672896,0.15159,3299.1,3297.7,0.17740176]
[1768504674292,0.1516,3299.0,3297.7,0.17740176]
[1768504676294,0.15161,3298.7,3297.2,0.1673679]
[1768504676496,0.00300058,3299.2,3297.3,1.94426029]
[1768504676691,0.00300058,3299.2,3297.4,0.1673679]
[1768504677291,0.00300058,3299.2,3297.8,1.76689239]
[1768504677498,0.01,3300.1,3297.9,0.1773679]
[1768504677697,0.82926968,3300.0,3298.1,0.1673679]
[1768504677898,40.8,3300.2,3298.1,0.1673679]
[1768504677899,0.01,3300.2,3298.1,0.1673679]
[1768504678200,0.15157,3299.6,3298.4,0.1673679]
[1768504678499,0.00270237,3299.6,3298.6,0.1673679]
[1768504679099,1.24540752,3300.8,3298.9,0.1673679]